[Event "DFMMLV 2024"]
[Site "Braunfels"]
[Date "2024.05.30"]
[Round "1.11"]
[White "Meyer, Bettina"]
[Black "Trunz, Michelle"]
[Result "0-1"]
[ECO "D31"]
[WhiteElo "1981"]
[BlackElo "2048"]
[Annotator "NA RC"]
[PlyCount "111"]
[EventDate "2024.05.30"]
[EventType "team-tourn"]
[EventCountry "GER"]
[SourceTitle "playchess.com"]
[Source "ChessBase"]
[SourceQuality "1"]
[TimeControl "40/5400+30:1800+30"]

1. d4 {[%emt 0:00:06]} d5 {[%emt 0:00:04]} 2. c4 {[%emt 0:00:07]} c6 {[%emt 0:00:04]} 3. Nc3 {[%emt 0:00:07]} dxc4 {[%emt 0:00:04]} 4. e4 {[%emt 0:01:05]} b5 {[%emt 0:00:09]} 5. a3 {[%emt 0:00:38]} e6 {[%emt 0:04:01]} 6. Nf3 {[%emt 0:02:02]} Nf6 {[%emt 0:01:32]} 7. Bg5 {[%emt 0:05:47]} Be7 {[%emt 0:00:46]} 8. Qd2 {[%emt 0:23:09]} Bb7 {[%emt 0:05:00]} 9. Be2 {[%emt 0:09:18]} O-O {[%emt 0:01:24]} 10. O-O {[%emt 0:01:54]} Nbd7 {[%emt 0:01:34]} 11. e5 {[%emt 0:04:31]} Nd5 {[%emt 0:00:36]} 12. Bxe7 {[%emt 0:00:06]} Qxe7 {[%emt 0:01:47]} 13. Ne4 {[%emt 0:03:50]} f6 {[%emt 0:08:26]} 14. Nd6 {[%emt 0:01:45]} Rab8 {[%emt 0:01:45]} 15. Nxb7 {[%emt 0:01:20]} Rxb7 {[%emt 0:00:02]} 16. Bd1 {[%emt 0:01:51]} fxe5 {[%emt 0:02:47]} 17. dxe5 {[%emt 0:00:29]} b4 {[%emt 0:12:36]} 18. Re1 {[%emt 0:11:19]} bxa3 {[%emt 0:05:05]} 19. bxa3 {[%emt 0:01:34]} c3 {[%emt 0:00:10]} 20. Qg5 {[%emt 0:04:13]} Qxg5 {[%emt 0:01:05]} 21. Nxg5 {[%emt 0:00:06]} Rf5 {[%emt 0:09:45]} 22. Nxe6 {[%emt 0:07:39]} Rxe5 {[%emt 0:00:22]} 23. Ba4 {[%emt 0:01:00]} Rb2 {[%emt 0:17:18]} 24. Nd4 {[%emt 0:03:23]} Nf4 {[%emt 0:04:53]} 25. Nxc6 {[%emt 0:06:50]} Rxe1+ {[%emt 0:01:03]} 26. Rxe1 {[%emt 0:00:01]} c2 {[%emt 0:02:30]} 27. Nb4 {[%emt 0:02:00]} c1=Q {[%emt 0:04:00]} 28. Rxc1 {[%emt 0:00:37]} Ne2+ {[%emt 0:00:03]} 29. Kf1 {[%emt 0:00:06]} Nxc1 {[%emt 0:00:05]} 30. Bxd7 {[%emt 0:00:07]} Rd2 {[%emt 0:04:41]} 31. Bg4 {[%emt 0:02:12]} Nd3 {[%emt 0:04:58]} 32. Nxd3 {[%emt 0:03:04]} Rxd3 {[%emt 0:00:02]} 33. a4 {[%emt 0:00:10]} Rd4 {[%emt 0:00:15]} 34. Be6+ {[%emt 0:00:04]} Kf8 {[%emt 0:00:05]} 35. Bb3 {[%emt 0:00:10]} Ke7 {[%emt 0:01:21]} 36. Ke2 {[%emt 0:00:23]} Kd6 {[%emt 0:00:12]} 37. Bc2 {[%emt 0:00:35]} h6 {[%emt 0:00:47]} 38. g3 {[%emt 0:00:18]} Kc5 {[%emt 0:00:42]} 39. h4 {[%emt 0:02:16]} a5 {[%emt 0:08:01]} 40. Ke3 {[%emt 0:00:35]} Kc4 {[%emt 0:00:00]} 41. Bg6 {[%emt 0:31:06]} Rd6 {[%emt 0:24:44]} 42. Bc2 {[%emt 0:01:00]} Kc3 {[%emt 0:00:31]} 43. Bf5 {[%emt 0:00:44]} Kb3 {[%emt 0:02:41]} 44. f4 {[%emt 0:02:04]} Kxa4 {[%emt 0:00:12]} 45. g4 {[%emt 0:00:21]} Kb3 {[%emt 0:00:56]} 46. Bh7 {[%emt 0:00:25]} a4 {[%emt 0:00:59]} 47. Bg8+ {[%emt 0:00:10]} Kb2 {[%emt 0:00:16]} 48. Ke4 {[%emt 0:00:12]} a3 {[%emt 0:00:34]} 49. Ke5 {[%emt 0:00:09]} Rd8 {[%emt 0:01:46]} 50. Bf7 {[%emt 0:00:17]} Rd7 {[%emt 0:00:00]} 51. Bg8 {[%emt 0:00:00]} Rb7 {[%emt 0:00:00]} 52. g5 {[%emt 0:00:00]} Rb5+ {[%emt 0:00:00]} 53. Ke4 {[%emt 0:00:00]} hxg5 {[%emt 0:00:00]} 54. hxg5 {[%emt 0:00:00]} g6 {[%emt 0:00:00]} 55. Bf7 {[%emt 0:00:00]} a2 {[%emt 0:00:00]} 56. Kd4 {[%emt 0:05:15]} 0-1

[Event "DFMMLV 2024"]
[Site "Braunfels"]
[Date "2024.05.30"]
[Round "1.12"]
[White "Hess, Olena"]
[Black "Kotyk, Valeriya"]
[Result "1-0"]
[ECO "A31"]
[WhiteElo "2041"]
[BlackElo "1874"]
[Annotator "NA RC"]
[PlyCount "75"]
[EventDate "2024.05.30"]
[EventType "team-tourn"]
[EventCountry "GER"]
[SourceTitle "playchess.com"]
[Source "ChessBase"]
[SourceQuality "1"]
[TimeControl "40/5400+30:1800+30"]

1. Nf3 {[%emt 0:00:03]} Nf6 {[%emt 0:01:05]} 2. c4 {[%emt 0:00:17]} c5 {[%emt 0:02:44]} 3. d4 {[%emt 0:00:30]} cxd4 {[%emt 0:05:25]} 4. Nxd4 {[%emt 0:00:06]} e5 {[%emt 0:03:15]} 5. Nb5 {[%emt 0:01:26]} d5 {[%emt 0:01:50]} 6. cxd5 {[%emt 0:00:33]} Bc5 {[%emt 0:01:29]} 7. e3 {[%emt 0:00:39]} O-O {[%emt 0:00:54]} 8. N5c3 {[%emt 0:00:31]} Qe7 {[%emt 0:01:09]} 9. Be2 {[%emt 0:07:26]} e4 {[%emt 0:04:49]} 10. Nd2 {[%emt 0:01:25]} Rd8 {[%emt 0:03:02]} 11. Nb3 {[%emt 0:17:47]} Bb4 {[%emt 0:10:28]} 12. O-O {[%emt 0:10:16]} Bxc3 {[%emt 0:01:50]} 13. bxc3 {[%emt 0:00:02]} Rxd5 {[%emt 0:00:54]} 14. Nd4 {[%emt 0:01:58]} Nbd7 {[%emt 0:26:45]} 15. c4 {[%emt 0:10:56]} Rg5 {[%emt 0:02:37]} 16. f4 {[%emt 0:00:17]} exf3 {[%emt 0:02:29]} 17. Nxf3 {[%emt 0:00:32]} Rf5 {[%emt 0:10:23]} 18. Qd4 {[%emt 0:05:53]} Nf8 {[%emt 0:04:45]} 19. Bb2 {[%emt 0:09:32]} Ne6 {[%emt 0:02:54]} 20. Qh4 {[%emt 0:08:56]} Rh5 {[%emt 0:08:34]} 21. Bxf6 {[%emt 0:01:05]} Qxf6 {[%emt 0:00:25]} 22. Qxh5 {[%emt 0:00:18]} Qc3 {[%emt 0:00:35]} 23. Qe5 {[%emt 0:01:50]} Qxe5 {[%emt 0:00:19]} 24. Nxe5 {[%emt 0:00:05]} f6 {[%emt 0:00:26]} 25. Nf3 {[%emt 0:00:28]} Bd7 {[%emt 0:00:41]} 26. Nd4 {[%emt 0:00:55]} Nc5 {[%emt 0:00:18]} 27. Bf3 {[%emt 0:00:31]} Re8 {[%emt 0:00:21]} 28. Nb3 {[%emt 0:03:58]} Ne4 {[%emt 0:01:11]} 29. Bxe4 {[%emt 0:00:56]} Rxe4 {[%emt 0:00:11]} 30. Nc5 {[%emt 0:00:08]} Re7 {[%emt 0:00:08]} 31. Nxd7 {[%emt 0:00:06]} Rxd7 {[%emt 0:00:10]} 32. Rfd1 {[%emt 0:00:15]} Rc7 {[%emt 0:00:21]} 33. Rac1 {[%emt 0:00:03]} Kf7 {[%emt 0:00:14]} 34. Rd4 {[%emt 0:00:19]} Kg6 {[%emt 0:00:15]} 35. Rcd1 {[%emt 0:00:14]} a5 {[%emt 0:01:21]} 36. a4 {[%emt 0:00:16]} h6 {[%emt 0:00:23]} 37. Rb1 {[%emt 0:00:08]} Re7 {[%emt 0:00:33]} 38. Kf2 {[%emt 0:00:06]} 1-0

[Event "DFMMLV 2024"]
[Site "Braunfels"]
[Date "2024.05.30"]
[Round "1.13"]
[White "Sural, Ceren"]
[Black "Trunz, Elena"]
[Result "0-1"]
[ECO "D04"]
[WhiteElo "1793"]
[BlackElo "2107"]
[Annotator "RC"]
[PlyCount "108"]
[EventDate "2024.05.30"]
[EventType "team-tourn"]
[EventCountry "GER"]
[SourceTitle "playchess.com"]
[Source "ChessBase"]
[SourceQuality "1"]
[TimeControl "40/5400+30:1800+30"]

1. d4 {[%emt 0:00:05]} d5 {[%emt 0:00:07]} 2. e3 {[%emt 0:00:26]} Bf5 {[%emt 0:05:00]} 3. Nf3 {[%emt 0:02:00]} Nf6 {[%emt 0:01:50]} 4. b3 {[%emt 0:01:21]} e6 {[%emt 0:02:03]} 5. a3 {[%emt 0:01:46]} Bd6 {[%emt 0:01:47]} 6. Bb2 {[%emt 0:03:40]} Nbd7 {[%emt 0:08:24]} 7. Be2 {[%emt 0:06:25]} Ne4 {[%emt 0:02:46]} 8. c4 {[%emt 0:14:15]} c6 {[%emt 0:01:50]} 9. O-O {[%emt 0:11:25]} Qf6 {[%emt 0:02:32]} 10. Nbd2 {[%emt 0:11:13]} h5 {[%emt 0:11:19]} 11. Nxe4 {[%emt 0:07:31]} dxe4 {[%emt 0:08:33]} 12. Nd2 {[%emt 0:06:23]} Qg5 {[%emt 0:08:34]} 13. f4 {[%emt 0:05:42]} exf3 {[%emt 0:02:00]} 14. Nxf3 {[%emt 0:02:07]} Qxe3+ {[%emt 0:01:26]} 15. Kh1 {[%emt 0:02:08]} Nf6 {[%emt 0:04:25]} 16. Bc1 {[%emt 0:03:52]} Qe4 {[%emt 0:06:47]} 17. Ng5 {[%emt 0:01:00]} Qc2 {[%emt 0:02:32]} 18. Qxc2 {[%emt 0:01:44]} Bxc2 {[%emt 0:00:05]} 19. Ra2 {[%emt 0:01:08]} Bg6 {[%emt 0:01:23]} 20. Bf3 {[%emt 0:05:38]} O-O {[%emt 0:06:17]} 21. Nh3 {[%emt 0:02:30]} e5 {[%emt 0:12:41]} 22. dxe5 {[%emt 0:00:45]} Bxe5 {[%emt 0:00:05]} 23. Bd2 {[%emt 0:03:05]} Rad8 {[%emt 0:01:31]} 24. Bg5 {[%emt 0:02:51]} Rd3 {[%emt 0:02:56]} 25. b4 {[%emt 0:01:30]} Ne4 {[%emt 0:01:27]} 26. Bxe4 {[%emt 0:00:17]} Bxe4 {[%emt 0:00:06]} 27. Nf2 {[%emt 0:00:15]} Rd4 {[%emt 0:00:44]} 28. Re2 {[%emt 0:01:16]} f5 {[%emt 0:00:35]} 29. Nxe4 {[%emt 0:01:16]} fxe4 {[%emt 0:00:07]} 30. Rc1 {[%emt 0:00:43]} Rxc4 {[%emt 0:00:26]} 31. Rd1 {[%emt 0:00:40]} Rd4 {[%emt 0:01:11]} 32. Rde1 {[%emt 0:00:01]} Bd6 {[%emt 0:01:10]} 33. g3 {[%emt 0:00:35]} Re8 {[%emt 0:00:33]} 34. Re3 {[%emt 0:00:54]} a6 {[%emt 0:00:37]} 35. Rc3 {[%emt 0:00:27]} Kf7 {[%emt 0:00:34]} 36. Be3 {[%emt 0:00:22]} Rd3 {[%emt 0:00:58]} 37. Rc2 {[%emt 0:00:20]} Rxa3 {[%emt 0:00:14]} 38. Rf2+ {[%emt 0:00:27]} Kg6 {[%emt 0:00:21]} 39. g4 {[%emt 0:00:10]} hxg4 {[%emt 0:00:47]} 40. Rg2 {[%emt 0:00:18]} g3 {[%emt 0:01:08]} 41. hxg3 {[%emt 0:31:00]} Bxb4 {[%emt 0:31:03]} 42. Ree2 {[%emt 0:00:58]} Rh8+ {[%emt 0:00:00]} 43. Rh2 {[%emt 0:00:00]} Rxh2+ {[%emt 0:00:00]} 44. Kxh2 {[%emt 0:00:00]} Bd6 {[%emt 0:00:00]} 45. Kh3 {[%emt 0:00:00]} Kf5 {[%emt 0:00:00]} 46. g4+ {[%emt 0:00:00]} Ke6 {[%emt 0:00:00]} 47. Kh4 {[%emt 0:00:00]} Be5 {[%emt 0:00:00]} 48. Kg5 {[%emt 0:00:00]} Kd5 {[%emt 0:00:00]} 49. Kf5 {[%emt 0:00:00]} c5 {[%emt 0:00:00]} 50. Bxc5 {[%emt 0:00:00]} Rf3+ {[%emt 0:00:00]} 51. Kg6 {[%emt 0:00:00]} Kxc5 {[%emt 0:00:00]} 52. Rxe4 {[%emt 0:00:00]} Kd5 {[%emt 0:00:00]} 53. Re1 {[%emt 0:00:00]} b5 {[%emt 0:00:00]} 54. g5 {[%emt 0:00:00]} b4 {[%emt 0:00:00]} 0-1

[Event "DFMMLV 2024"]
[Site "Braunfels"]
[Date "2024.05.30"]
[Round "1.14"]
[White "Freitag, Julia"]
[Black "Tobianski, Karina"]
[Result "1/2-1/2"]
[ECO "D00"]
[WhiteElo "2084"]
[BlackElo "1816"]
[Annotator "NA RC"]
[PlyCount "103"]
[EventDate "2024.05.30"]
[EventType "team-tourn"]
[EventCountry "GER"]
[SourceTitle "playchess.com"]
[Source "ChessBase"]
[SourceQuality "1"]
[TimeControl "40/5400+30:1800+30"]

1. d4 {[%emt 0:00:04]} d5 {[%emt 0:00:06]} 2. e3 {[%emt 0:00:06]} Nf6 {[%emt 0:00:08]} 3. Bd3 {[%emt 0:00:39]} Bg4 {[%emt 0:00:39]} 4. f3 {[%emt 0:00:11]} Bh5 {[%emt 0:00:11]} 5. Ne2 {[%emt 0:00:22]} Nbd7 {[%emt 0:00:29]} 6. Ng3 {[%emt 0:01:27]} Bg6 {[%emt 0:03:23]} 7. f4 {[%emt 0:03:22]} e6 {[%emt 0:05:08]} 8. O-O {[%emt 0:04:38]} Bd6 {[%emt 0:12:23]} 9. Qe2 {[%emt 0:13:23]} c5 {[%emt 0:17:14]} 10. c3 {[%emt 0:00:54]} c4 {[%emt 0:03:24]} 11. Bc2 {[%emt 0:12:19]} Bxc2 {[%emt 0:04:56]} 12. Qxc2 {[%emt 0:00:10]} Ng4 {[%emt 0:02:46]} 13. h3 {[%emt 0:05:50]} Qh4 {[%emt 0:03:27]} 14. Rf3 {[%emt 0:03:42]} h5 {[%emt 0:09:55]} 15. b3 {[%emt 0:03:15]} cxb3 {[%emt 0:07:11]} 16. axb3 {[%emt 0:00:06]} O-O {[%emt 0:01:13]} 17. Bd2 {[%emt 0:15:03]} f5 {[%emt 0:01:15]} 18. Qd1 {[%emt 0:03:08]} Nh6 {[%emt 0:05:42]} 19. Be1 {[%emt 0:01:33]} Qe7 {[%emt 0:00:12]} 20. Nxh5 {[%emt 0:00:45]} Qf7 {[%emt 0:01:48]} 21. Ng3 {[%emt 0:01:37]} Nf6 {[%emt 0:00:45]} 22. c4 {[%emt 0:01:35]} b6 {[%emt 0:01:34]} 23. Nc3 {[%emt 0:02:26]} Rfc8 {[%emt 0:01:37]} 24. Nb5 {[%emt 0:01:47]} Qe7 {[%emt 0:00:42]} 25. Nxd6 {[%emt 0:02:36]} Qxd6 {[%emt 0:00:08]} 26. Ra4 {[%emt 0:03:27]} a5 {[%emt 0:01:06]} 27. Rf2 {[%emt 0:02:12]} Rc6 {[%emt 0:01:48]} 28. Qd3 {[%emt 0:10:28]} Rac8 {[%emt 0:04:53]} 29. Rc2 {[%emt 0:00:59]} Ne4 {[%emt 0:01:28]} 30. Nxe4 {[%emt 0:01:55]} fxe4 {[%emt 0:00:02]} 31. Qe2 {[%emt 0:00:06]} Qe7 {[%emt 0:01:42]} 32. g4 {[%emt 0:00:48]} Nf7 {[%emt 0:01:31]} 33. Ra1 {[%emt 0:02:46]} Nd6 {[%emt 0:00:32]} 34. Rac1 {[%emt 0:02:09]} Qc7 {[%emt 0:01:10]} 35. c5 {[%emt 0:00:56]} bxc5 {[%emt 0:00:14]} 36. dxc5 {[%emt 0:00:32]} Nb7 {[%emt 0:01:02]} 37. b4 {[%emt 0:00:14]} axb4 {[%emt 0:00:46]} 38. Bxb4 {[%emt 0:00:01]} e5 {[%emt 0:01:46]} 39. Qd2 {[%emt 0:00:27]} d4 {[%emt 0:03:52]} 40. exd4 {[%emt 0:01:55]} exf4 {[%emt 0:00:24]} 41. d5 {[%emt 0:02:43]} e3 {[%emt 0:07:38]} 42. Qe2 {[%emt 0:04:46]} Rf6 {[%emt 0:01:40]} 43. Qf3 {[%emt 0:00:43]} Nd8 {[%emt 0:05:49]} 44. Bc3 {[%emt 0:15:10]} Rf7 {[%emt 0:02:38]} 45. Bd4 {[%emt 0:00:42]} Qb7 {[%emt 0:07:12]} 46. c6 {[%emt 0:02:04]} Qb4 {[%emt 0:00:32]} 47. Bc5 {[%emt 0:01:31]} Qb5 {[%emt 0:00:25]} 48. Bd6 {[%emt 0:00:56]} Qb6 {[%emt 0:01:06]} 49. Kg2 {[%emt 0:01:12]} Qd4 {[%emt 0:01:32]} 50. Rb1 {[%emt 0:00:12]} Qd3 {[%emt 0:02:51]} 51. Rcb2 {[%emt 0:00:35]} Nxc6 {[%emt 0:00:38]} 52. dxc6 {[%emt 0:06:03]} 1/2-1/2

[Event "DFMMLV 2024"]
[Site "Braunfels"]
[Date "2024.05.30"]
[Round "1.16"]
[White "Schirmbeck, Lilian"]
[Black "Stappenbeck, Nina"]
[Result "1-0"]
[ECO "E91"]
[WhiteElo "1791"]
[BlackElo "1738"]
[Annotator "NA RC"]
[PlyCount "71"]
[EventDate "2024.05.30"]
[EventType "team-tourn"]
[EventCountry "GER"]
[SourceTitle "playchess.com"]
[Source "ChessBase"]
[SourceQuality "1"]
[TimeControl "40/5400+30:1800+30"]

1. d4 {[%emt 0:00:05]} Nf6 {[%emt 0:00:14]} 2. Nf3 {[%emt 0:00:08]} g6 {[%emt 0:00:14]} 3. c4 {[%emt 0:00:36]} d6 {[%emt 0:00:22]} 4. Nc3 {[%emt 0:00:38]} Bg7 {[%emt 0:00:09]} 5. e4 {[%emt 0:01:30]} O-O {[%emt 0:00:15]} 6. Be2 {[%emt 0:01:17]} Nc6 {[%emt 0:01:35]} 7. d5 {[%emt 0:10:16]} Nb4 {[%emt 0:02:47]} 8. a3 {[%emt 0:02:38]} Na6 {[%emt 0:00:17]} 9. h3 {[%emt 0:00:52]} e5 {[%emt 0:09:51]} 10. g4 {[%emt 0:10:25]} Nc5 {[%emt 0:05:49]} 11. Qc2 {[%emt 0:01:06]} c6 {[%emt 0:06:14]} 12. Be3 {[%emt 0:04:38]} cxd5 {[%emt 0:06:34]} 13. cxd5 {[%emt 0:00:50]} a6 {[%emt 0:06:34]} 14. Bxc5 {[%emt 0:10:37]} dxc5 {[%emt 0:02:37]} 15. Nxe5 {[%emt 0:00:33]} Nxd5 {[%emt 0:07:37]} 16. Nxf7 {[%emt 0:05:06]} Bxc3+ {[%emt 0:10:59]} 17. bxc3 {[%emt 0:00:15]} Rxf7 {[%emt 0:01:52]} 18. Bc4 {[%emt 0:04:43]} Be6 {[%emt 0:07:05]} 19. Rd1 {[%emt 0:02:53]} Rd7 {[%emt 0:07:27]} 20. Bxd5 {[%emt 0:01:21]} Qe7 {[%emt 0:03:31]} 21. Bxe6+ {[%emt 0:01:02]} Qxe6 {[%emt 0:00:03]} 22. Rxd7 {[%emt 0:00:19]} Qxd7 {[%emt 0:00:10]} 23. O-O {[%emt 0:07:55]} Rd8 {[%emt 0:01:24]} 24. Qb3+ {[%emt 0:01:35]} Kg7 {[%emt 0:00:12]} 25. e5 {[%emt 0:02:36]} Qd5 {[%emt 0:01:08]} 26. Qxd5 {[%emt 0:03:52]} Rxd5 {[%emt 0:00:03]} 27. f4 {[%emt 0:02:47]} Kf7 {[%emt 0:01:27]} 28. Rf3 {[%emt 0:02:07]} b5 {[%emt 0:00:58]} 29. Re3 {[%emt 0:02:06]} a5 {[%emt 0:01:21]} 30. f5 {[%emt 0:00:19]} gxf5 {[%emt 0:06:10]} 31. gxf5 {[%emt 0:00:54]} b4 {[%emt 0:02:05]} 32. cxb4 {[%emt 0:00:40]} axb4 {[%emt 0:00:14]} 33. axb4 {[%emt 0:00:09]} cxb4 {[%emt 0:00:04]} 34. e6+ {[%emt 0:00:16]} Ke7 {[%emt 0:03:19]} 35. f6+ {[%emt 0:00:33]} Ke8 {[%emt 0:04:01]} 36. Rg3 {[%emt 0:01:56]} 1-0

[Event "DFMMLV 2024"]
[Site "Braunfels"]
[Date "2024.05.30"]
[Round "1.18"]
[White "Kalina, Lena"]
[Black "Hund, Sarah"]
[Result "1/2-1/2"]
[ECO "D36"]
[WhiteElo "1918"]
[BlackElo "1991"]
[Annotator "NA RC"]
[PlyCount "105"]
[EventDate "2024.05.30"]
[EventType "team-tourn"]
[EventCountry "GER"]
[SourceTitle "playchess.com"]
[Source "ChessBase"]
[SourceQuality "1"]
[TimeControl "40/5400+30:1800+30"]

1. d4 {[%emt 0:00:03]} d5 {[%emt 0:00:07]} 2. c4 {[%emt 0:00:04]} e6 {[%emt 0:00:13]} 3. Nc3 {[%emt 0:00:06]} Be7 {[%emt 0:00:11]} 4. Nf3 {[%emt 0:01:24]} Nf6 {[%emt 0:00:34]} 5. cxd5 {[%emt 0:00:34]} exd5 {[%emt 0:00:13]} 6. Bg5 {[%emt 0:00:41]} c6 {[%emt 0:00:41]} 7. Qc2 {[%emt 0:02:17]} g6 {[%emt 0:01:46]} 8. e3 {[%emt 0:02:52]} Bf5 {[%emt 0:00:43]} 9. Bd3 {[%emt 0:01:42]} Bxd3 {[%emt 0:01:06]} 10. Qxd3 {[%emt 0:00:07]} Nbd7 {[%emt 0:01:38]} 11. O-O {[%emt 0:06:46]} O-O {[%emt 0:02:07]} 12. Rab1 {[%emt 0:03:24]} a5 {[%emt 0:02:10]} 13. a3 {[%emt 0:02:43]} Re8 {[%emt 0:04:41]} 14. b4 {[%emt 0:03:40]} axb4 {[%emt 0:04:48]} 15. axb4 {[%emt 0:00:10]} b5 {[%emt 0:02:26]} 16. Rfc1 {[%emt 0:04:13]} Ne4 {[%emt 0:04:29]} 17. Bf4 {[%emt 0:05:26]} Bd6 {[%emt 0:04:43]} 18. Bxd6 {[%emt 0:08:08]} Nxd6 {[%emt 0:00:30]} 19. Ra1 {[%emt 0:03:43]} Qe7 {[%emt 0:07:51]} 20. Ne2 {[%emt 0:05:12]} Nc4 {[%emt 0:02:51]} 21. Qb3 {[%emt 0:02:23]} h5 {[%emt 0:03:45]} 22. Nf4 {[%emt 0:02:12]} h4 {[%emt 0:10:23]} 23. h3 {[%emt 0:04:28]} g5 {[%emt 0:04:51]} 24. Nd3 {[%emt 0:01:42]} f6 {[%emt 0:02:45]} 25. Nc5 {[%emt 0:03:25]} Ndb6 {[%emt 0:05:41]} 26. Qc2 {[%emt 0:03:58]} Kg7 {[%emt 0:02:56]} 27. Kh1 {[%emt 0:18:16]} Kh6 {[%emt 0:04:12]} 28. Rg1 {[%emt 0:02:38]} Nd6 {[%emt 0:06:25]} 29. Rxa8 {[%emt 0:03:00]} Rxa8 {[%emt 0:02:40]} 30. g3 {[%emt 0:01:11]} hxg3 {[%emt 0:07:14]} 31. Rxg3 {[%emt 0:00:10]} Rg8 {[%emt 0:04:49]} 32. h4 {[%emt 0:01:51]} g4 {[%emt 0:01:07]} 33. Ne1 {[%emt 0:02:15]} Nbc4 {[%emt 0:01:33]} 34. Ng2 {[%emt 0:03:55]} Qh7 {[%emt 0:02:43]} 35. Qxh7+ {[%emt 0:01:04]} Kxh7 {[%emt 0:00:03]} 36. Nf4 {[%emt 0:00:16]} Ne4 {[%emt 0:02:23]} 37. Nxe4 {[%emt 0:00:29]} dxe4 {[%emt 0:00:04]} 38. Rg1 {[%emt 0:00:29]} Nd6 {[%emt 0:00:59]} 39. Rc1 {[%emt 0:01:39]} Nc4 {[%emt 0:00:46]} 40. Ra1 {[%emt 0:01:01]} g3 {[%emt 0:00:37]} 41. Nh5 {[%emt 0:04:16]} gxf2 {[%emt 0:10:34]} 42. Nxf6+ {[%emt 0:01:23]} Kh8 {[%emt 0:00:08]} 43. Nxg8 {[%emt 0:01:12]} Nxe3 {[%emt 0:00:19]} 44. Ne7 {[%emt 0:11:09]} f1=Q+ {[%emt 0:13:41]} 45. Rxf1 {[%emt 0:00:05]} Nxf1 {[%emt 0:00:05]} 46. Nxc6 {[%emt 0:01:39]} Ne3 {[%emt 0:03:53]} 47. Kg1 {[%emt 0:03:00]} Nd5 {[%emt 0:00:28]} 48. Kf2 {[%emt 0:02:10]} Kg7 {[%emt 0:01:51]} 49. Na7 {[%emt 0:03:16]} Kf6 {[%emt 0:00:46]} 50. Nxb5 {[%emt 0:01:53]} Nxb4 {[%emt 0:00:22]} 51. Nd6 {[%emt 0:03:05]} Nc2 {[%emt 0:02:52]} 52. Ne8+ {[%emt 0:02:53]} Ke7 {[%emt 0:00:26]} 53. Ng7 {[%emt 0:00:41]} 1/2-1/2

[Event "DFMMLV 2024"]
[Site "Braunfels"]
[Date "2024.05.30"]
[Round "1.19"]
[White "Novikova, Margarita"]
[Black "Krasnopeyeva, Julia"]
[Result "1-0"]
[ECO "B23"]
[WhiteElo "1999"]
[BlackElo "1918"]
[Annotator "NA RC"]
[PlyCount "75"]
[EventDate "2024.05.30"]
[EventType "team-tourn"]
[EventCountry "GER"]
[SourceTitle "playchess.com"]
[Source "ChessBase"]
[SourceQuality "1"]
[TimeControl "40/5400+30:1800+30"]

1. e4 {[%emt 0:09:50]} c5 {[%emt 0:00:11]} 2. Nc3 {[%emt 0:00:59]} e6 {[%emt 0:00:31]} 3. g3 {[%emt 0:00:09]} Nc6 {[%emt 0:01:07]} 4. Bg2 {[%emt 0:00:28]} Nf6 {[%emt 0:01:07]} 5. Nge2 {[%emt 0:01:34]} a6 {[%emt 0:02:39]} 6. a4 {[%emt 0:04:47]} Be7 {[%emt 0:02:20]} 7. O-O {[%emt 0:01:30]} h5 {[%emt 0:01:36]} 8. h3 {[%emt 0:01:51]} d6 {[%emt 0:04:11]} 9. d4 {[%emt 0:01:52]} cxd4 {[%emt 0:01:03]} 10. Nxd4 {[%emt 0:00:18]} Bd7 {[%emt 0:01:24]} 11. Rb1 {[%emt 0:02:10]} Qc8 {[%emt 0:03:01]} 12. Kh2 {[%emt 0:00:28]} Nxd4 {[%emt 0:02:47]} 13. Qxd4 {[%emt 0:00:03]} e5 {[%emt 0:00:44]} 14. Qd1 {[%emt 0:01:07]} Qc4 {[%emt 0:01:10]} 15. Ra1 {[%emt 0:10:06]} Rc8 {[%emt 0:02:42]} 16. Re1 {[%emt 0:03:05]} Qb4 {[%emt 0:01:26]} 17. Kg1 {[%emt 0:03:24]} Rc4 {[%emt 0:03:24]} 18. Ra2 {[%emt 0:01:18]} Be6 {[%emt 0:02:44]} 19. Ra3 {[%emt 0:02:42]} Qb6 {[%emt 0:01:58]} 20. Nd5 {[%emt 0:01:46]} Bxd5 {[%emt 0:05:06]} 21. exd5 {[%emt 0:00:10]} Rd4 {[%emt 0:02:00]} 22. Rd3 {[%emt 0:01:02]} Rxa4 {[%emt 0:00:38]} 23. b3 {[%emt 0:00:53]} Ra2 {[%emt 0:01:32]} 24. Be3 {[%emt 0:02:49]} Qc7 {[%emt 0:02:02]} 25. c4 {[%emt 0:00:33]} h4 {[%emt 0:02:41]} 26. Qb1 {[%emt 0:03:24]} Qa5 {[%emt 0:01:53]} 27. b4 {[%emt 0:01:57]} Qa4 {[%emt 0:00:12]} 28. g4 {[%emt 0:07:58]} Qc2 {[%emt 0:01:58]} 29. Rc1 {[%emt 0:01:05]} Qxb1 {[%emt 0:00:48]} 30. Rxb1 {[%emt 0:01:54]} Rc2 {[%emt 0:00:38]} 31. c5 {[%emt 0:00:28]} Kd7 {[%emt 0:01:46]} 32. g5 {[%emt 0:01:07]} Nh5 {[%emt 0:01:57]} 33. b5 {[%emt 0:05:32]} axb5 {[%emt 0:03:55]} 34. Rxb5 {[%emt 0:01:00]} Kc7 {[%emt 0:03:40]} 35. Rdb3 {[%emt 0:03:25]} Ra8 {[%emt 0:00:55]} 36. Rxb7+ {[%emt 0:00:32]} Kd8 {[%emt 0:00:42]} 37. c6 {[%emt 0:01:17]} Nf4 {[%emt 0:00:53]} 38. Rb8+ {[%emt 0:00:56]} 1-0

[Event "DFMMLV 2024"]
[Site "Braunfels"]
[Date "2024.05.30"]
[Round "1.20"]
[White "Mader, Lena"]
[Black "Timofeeva, Galina"]
[Result "1/2-1/2"]
[ECO "A30"]
[WhiteElo "1902"]
[BlackElo "1981"]
[Annotator "NA RC"]
[PlyCount "69"]
[EventDate "2024.05.30"]
[EventType "team-tourn"]
[EventCountry "GER"]
[SourceTitle "playchess.com"]
[Source "ChessBase"]
[SourceQuality "1"]
[TimeControl "40/5400+30:1800+30"]

1. c4 {[%emt 0:00:01]} c5 {[%emt 0:09:50]} 2. g3 {[%emt 0:00:05]} Nf6 {[%emt 0:00:14]} 3. Bg2 {[%emt 0:00:05]} g6 {[%emt 0:00:28]} 4. Nf3 {[%emt 0:00:08]} Bg7 {[%emt 0:00:08]} 5. Nc3 {[%emt 0:00:06]} O-O {[%emt 0:00:27]} 6. O-O {[%emt 0:00:14]} d6 {[%emt 0:00:13]} 7. d3 {[%emt 0:01:24]} Nbd7 {[%emt 0:01:14]} 8. Rb1 {[%emt 0:01:02]} Rb8 {[%emt 0:03:18]} 9. a3 {[%emt 0:00:17]} b6 {[%emt 0:02:08]} 10. b4 {[%emt 0:02:12]} Bb7 {[%emt 0:00:44]} 11. Bb2 {[%emt 0:00:29]} a6 {[%emt 0:04:55]} 12. Qd2 {[%emt 0:14:46]} Ng4 {[%emt 0:10:13]} 13. Nd5 {[%emt 0:14:18]} Bxd5 {[%emt 0:09:20]} 14. cxd5 {[%emt 0:00:01]} Ngf6 {[%emt 0:04:31]} 15. e4 {[%emt 0:01:31]} b5 {[%emt 0:02:24]} 16. Rfc1 {[%emt 0:04:55]} Rc8 {[%emt 0:02:09]} 17. Bh3 {[%emt 0:00:41]} Rc7 {[%emt 0:03:55]} 18. Bxd7 {[%emt 0:00:40]} Qxd7 {[%emt 0:01:23]} 19. Kg2 {[%emt 0:00:35]} Rfc8 {[%emt 0:02:56]} 20. Rc2 {[%emt 0:08:35]} Qd8 {[%emt 0:08:38]} 21. Rbc1 {[%emt 0:02:00]} Qf8 {[%emt 0:00:45]} 22. Ne1 {[%emt 0:13:57]} Nd7 {[%emt 0:04:15]} 23. f4 {[%emt 0:05:23]} Bxb2 {[%emt 0:03:42]} 24. Rxb2 {[%emt 0:00:01]} cxb4 {[%emt 0:02:16]} 25. Rxc7 {[%emt 0:00:30]} Rxc7 {[%emt 0:00:01]} 26. axb4 {[%emt 0:00:32]} Qc8 {[%emt 0:02:38]} 27. Nf3 {[%emt 0:00:37]} Qb7 {[%emt 0:04:51]} 28. Nd4 {[%emt 0:02:20]} Qb6 {[%emt 0:00:44]} 29. Nf3 {[%emt 0:12:17]} Nf6 {[%emt 0:03:07]} 30. h3 {[%emt 0:01:27]} e6 {[%emt 0:00:28]} 31. dxe6 {[%emt 0:01:33]} fxe6 {[%emt 0:00:01]} 32. Qf2 {[%emt 0:01:28]} Qxf2+ {[%emt 0:01:46]} 33. Kxf2 {[%emt 0:00:01]} d5 {[%emt 0:02:01]} 34. e5 {[%emt 0:00:45]} Ne8 {[%emt 0:01:24]} 35. Ke3 {[%emt 0:13:04]} 1/2-1/2